Cogmind - Beta 15 @@@ ROGUE MODE // 2025.08.02 @ 00:38:36 Player: Cracklepappy Result: Destroyed by AZ-G2W(R) with Subdweller Machine Gun Performance ------------- Evolutions (0) 0 Regions Visited (3) 600 Robots Destroyed (51) 255 Value Destroyed (1056) 1056 Prototype IDs (13) 260 Alien Tech Used (0) 0 Bonus (7) 7 TOTAL SCORE: 2178 Bonus ------- Follower Combat Kills 7 Cogmind --------- Core Integrity 0/250 Matter 300/300 Energy 200/200 System Corruption 0% Temperature Cool (0) Movement Rolling (145) Ox3 Location -10/Subcaves Parts ------- > --- POWER (1) -------- Subdweller Power Source > --- PROPULSION (2) --- Compact Wheel Subdweller Monowheel > --- UTILITY (2) ------ High-capacity Storage Unit Seismic Detector > --- WEAPON (2) ------- Subdweller Beam Cannon Subdweller Beam Cannon > --- INVENTORY (20) --- Subdweller Power Source Wheel Subdweller Monowheel Subdweller Monowheel Scrap Suit Disposable Heat Sink Large Matter Pod (150) High-capacity Matter Pod (200) Machine Analyzer Rainbow Chip Heavy Riot Gun Salvaging Laser Subdweller Laser Subdweller Laser Battle Rifle Battle Rifle Battle Cannon Grenade Launcher Makeshift Hammer Peak State ------------ > --- POWER ------------ Subdweller Power Source > --- PROPULSION ------- Compact Wheel Subdweller Monowheel > --- UTILITY ---------- High-capacity Storage Unit Seismic Detector > --- WEAPON ----------- Subdweller Beam Cannon Subdweller Beam Cannon > --- INVENTORY -------- Subdweller Power Source Wheel Subdweller Monowheel Subdweller Monowheel Scrap Suit Disposable Heat Sink Large Matter Pod High-capacity Matter Pod Machine Analyzer Rainbow Chip Salvaging Laser Subdweller Laser Subdweller Laser Subdweller Beam Cannon Battle Rifle Battle Rifle Battle Cannon Grenade Launcher Makeshift Hammer [Rating: 16] Favorites ----------- Power Ion Engine Engine Ion Engine Power Core Light Nuclear Core Propulsion Wheel Wheel Wheel Utility High-capacity Storage Unit Device Seismic Detector Storage High-capacity Storage Unit Processor Targeting Computer Weapon EM Pulse Gun Energy Gun EM Pulse Gun Energy Cannon Subdweller Beam Cannon Ballistic Gun Light Assault Rifle Ballistic Cannon Light Cannon Launcher Grenade Launcher Special Weapon Mining Laser Slashing Weapon Mining Claw Build | -11 -10 -10 -10 ------- Run | Yrd Mat Min Sub Slots Evolved . | . . . . Power . | . . . . Propulsion . | . . . . Utility . | . . . . Weapon . | . . . . Parts Attached 45 | 10 12 8 15 Power 7 | 1 2 1 3 Engine 6 | 1 2 1 2 Core 1 | . . . 1 Reactor . | . . . . Propulsion 13 | 4 2 1 6 Treads . | . . . . Leg . | . . . . Wheel 13 | 4 2 1 6 Hover . | . . . . Flight . | . . . . Utility 7 | 2 3 1 1 Device 3 | 1 . 1 1 Storage 3 | 1 2 . . Processor 1 | . 1 . . Hackware . | . . . . Protection . | . . . . Artifact . | . . . . Weapon 18 | 3 5 5 5 Energy Gun 11 | 2 3 3 3 Energy Cannon 2 | . . . 2 Ballistic Gun 1 | 1 . . . Ballistic Cannon 1 | . 1 . . Launcher 1 | . . 1 . Special Weapon 1 | . . 1 . Impact Weapon . | . . . . Slashing Weapon 1 | . 1 . . Piercing Weapon . | . . . . Special Melee Weapon . | . . . . Unidentified Prototypes . | . . . . Parts Lost 12 | . 2 5 5 Power 1 | . . . 1 Propulsion 2 | . . 1 1 Utility 1 | . . 1 . Weapon 8 | . 2 3 3 Highest Loss Streak 3 | . 2 3 3 To Critical Strikes . | . . . . Average Backups 16 | 4 15 17 18 Power 1 | . 1 1 1 Propulsion 3 | 2 1 3 4 Utility 4 | . 3 5 5 Weapon 7 | 1 8 7 7 Tool/Special . | . . . . Unused Backups 30 | 4 3 1 22 Power 2 | . . . 2 Propulsion 9 | 4 1 . 4 Utility 10 | . 1 1 8 Weapon 9 | . 1 . 8 Tool/Special . | . . . . Average Slot Usage (%) 98 | . 96 99 99 Engine 13 | . 14 14 13 Wheel 27 | . 28 28 27 Device 10 | . 5 12 14 Storage 14 | . 14 14 14 Processor 2 | . 5 1 . Energy Gun 20 | . 20 28 16 Energy Cannon 4 | . . . 11 Ballistic Gun 1 | . 3 . . Peak Build Rating 16 | 7 9 9 16 Average Rating 9 | 5 7 8 11 On Entrance 6 | . 7 9 9 Naked Turns . | . . . . Heaviest Build 62 | 12 51 50 62 Greatest Support 40 | 26 20 20 40 Greatest Overweight (x) 6 | . 2 2 6 Average Overweight (x) 1 | . 1 2 2 Largest Inventory Capacity 20 | 8 20 20 20 Average Capacity 17 | 7 16 20 20 Most Carried 20 | 8 20 20 20 Average Carried 16 | 5 15 19 19 Final Capacity 20 | 8 20 20 20 Final Carried 20 | 8 20 20 20 Class Distribution -------------------- 81% | Mutant 18% | Scavenger-Mutant Dominant Class ---------------- Mutant | -10/Materials Mutant | -10/Mines Scavenger-Mutant | -10/Subcaves Resources | -11 -10 -10 -10 ----------- Run | Yrd Mat Min Sub Matter Collected 1112 | 319 543 70 180 Remotely . | . . . . Salvage Created 1980 | 275 664 377 664 Parts 121 | 19 34 21 47 Haulers Intercepted 2 | . 2 . . Recyclers Shooed . | . . . . Parts Field Recycled . | . . . . Retrieved Matter . | . . . . Parts Self-Destructed 16 | . . . 16 Prevented . | . . . . Kills | -11 -10 -10 -10 ------- Run | Yrd Mat Min Sub Combat Hostiles Destroyed 28 | . 7 9 12 Guns 12 | . 5 4 3 Cannons 10 | . 2 . 8 AOE 6 | . . 5 1 Classes Destroyed 8 | 3 3 1 1 Worker 7 | 2 5 . . Tunneler 10 | 8 . 2 . Hauler 2 | . 2 . . Recycler 3 | 1 2 . . Mechanic 1 | . 1 . . Swarmer 5 | . . 3 2 Grunt 13 | . 7 6 . Subdweller 10 | . . . 10 Best Kill Streak 4 | 4 3 3 3 Combat Bots Only 3 | . 3 3 3 Max Kills in Single Turn 2 | 1 1 2 1 Gunslinging . | . . . . Exploded 2 | . . 2 1 Melee . | . . . . Uniques/NPCs Destroyed . | . . . . Combat | -11 -10 -10 -10 -------- Run | Yrd Mat Min Sub Hostile Shots Fired 95 | . 33 31 31 Missed 27 | . 9 11 7 Hits 68 | . 24 20 24 Projectile 68 | . 24 20 24 Critical Strikes 3 | . . 2 1 Damage Taken 1117 | . 326 331 460 Core 258 | . 107 48 103 Absorbed by Shields . | . . . . Regen/Repaired (Parts) 224 | . 224 . . Core Remaining (%) 100 | 100 . . . Volleys Fired 166 | 29 41 27 69 Largest 2 | 2 2 2 2 Hottest 160 | 60 80 100 160 Shots Fired 284 | 58 82 51 93 Gun 254 | 58 75 49 72 Cannon 28 | . 7 . 21 Launcher 1 | . . 1 . Special 1 | . . 1 . Kinetic 51 | 29 22 . . Thermal 86 | 29 . 1 56 Explosive 1 | . . 1 . Electromagnetic 146 | . 60 49 37 Robot Hit Streak 21 | 8 14 8 21 Robot Miss Streak 7 | 5 6 2 7 Penetration Max . | . . . . Secondary Targets 1 | . . . 1 Max Gunslinging Chain 1 | . . . 1 Shots Hit Robots 191 | 37 56 35 63 Core Hits 84 | 15 25 18 26 Critical Kills . | . . . . Critical Parts Destroyed . | . . . . Critical Strikes 3 | . 1 . 2 Corrupt 3 | . 1 . 2 Melee Attacks 5 | . 5 . . Impact . | . . . . Slashing 5 | . 5 . . Piercing . | . . . . Sneak Attacks 4 | . 4 . . Combat Hostiles . | . . . . Follow-up Attacks . | . . . . Damage Inflicted 2975 | 356 948 740 931 Guns 1925 | 356 582 477 510 Cannons 416 | . 62 . 354 Explosions 443 | . 113 263 67 Melee 191 | . 191 . . Ramming . | . . . . Kinetic 347 | 192 155 . . Thermal 1132 | 164 113 172 683 Explosive 91 | . . 91 . Electromagnetic 1214 | . 489 477 248 Impact . | . . . . Slashing 191 | . 191 . . Piercing . | . . . . Highest Corruption . | . . . . Average Corruption . | . . . . Corruption Purged . | . . . . Corruption Blocked . | . . . . Overload Shots . | . . . . Overflow Damage 73 | . 32 41 . Projectiles . | . . . . Explosions 45 | . 4 41 . Melee 28 | . 28 . . Knockbacks 1 | . 1 . . Impact . | . . . . Kinetic 1 | . 1 . . Secondary . | . . . . Self-Inflicted Damage 124 | . 38 86 . Shots 4 | . 1 3 . Rammed . | . . . . Targets Rammed . | . . . . Kicked . | . . . . Crushed . | . . . . Highest Temperature 178 | 40 111 178 57 Average Temperature 37 | 19 37 64 22 Received Heat Transfer 369 | . 165 126 78 Siege Activations . | . . . . Martial Activations . | . . . . Shielding Activations . | . . . . Robots Disrupted . | . . . . Combat Hostiles . | . . . . Robots Corrupted 1 | . 1 . . Combat Hostiles . | . . . . Parts Fried 4 | . 2 2 . Impact Corruptions . | . . . . Robots Melted . | . . . . Combat Hostiles . | . . . . Parts Melted . | . . . . Heat Transferred 1931 | 375 100 200 1256 Parts Sabotaged . | . . . . Parts Stolen . | . . . . Parts Stripped . | . . . . Power Chain Reactions 8 | . 3 4 1 Alert | -11 -10 -10 -10 ------- Run | Yrd Mat Min Sub Maximum Alert Level . | . . . . Low Security (%) 100 | 100 100 100 . Level 1 . | . . . . Level 2 . | . . . . Level 3 . | . . . . Level 4 . | . . . . Level 5 . | . . . . High Security . | . . . . Max Security . | . . . . Peak Influence 91 | 10 86 91 . Initial 30 | . . 30 . Average 14 | 1 13 22 . Influence Increases 790 | 55 376 263 96 Destroy 0b10 Robot/C 380 | . 140 180 60 Destroy 0b10 Robot/NC 115 | 55 50 10 . Destroy Leader 94 | . 44 40 10 Allied During Kill 11 | . . . 11 Successful Hack 58 | . 58 . . Select Force Hacks 60 | . 60 . . Destroy Structure 27 | . 9 18 . Lose Combat Pursuer 45 | . 15 15 15 Influence Decreases 790 | 55 299 340 96 Entered New Map 47 | . . 47 . Time Decay 673 | 55 289 243 86 Lost Part 70 | . 10 50 10 Squads Dispatched 4 | . 4 . . Investigation 4 | . 4 . . Extermination . | . . . . Reinforcement . | . . . . Assault . | . . . . Garrison . | . . . . Intercept . | . . . . Searches Triggered . | . . . . Construction Impeded . | . . . . Haulers Reinforced . | . . . . Active Scanning Responses . | . . . . Cargo Convoy Interrupts . | . . . . Stealth | -11 -10 -10 -10 --------- Run | Yrd Mat Min Sub Distress Signals 1 | . 1 . . Communications Jammed . | . . . . Distress Signals . | . . . . Times Spotted 37 | . 13 10 14 Peak Tracking Total 3 | . 2 3 3 Tactical Retreats 3 | . 1 1 1 Traps | -11 -10 -10 -10 ------- Run | Yrd Mat Min Sub Traps Triggered . | . . . . Indirectly . | . . . . Trap Hack Attempts . | . . . . Triggered . | . . . . Disarmed . | . . . . Reprogrammed . | . . . . Reused . | . . . . Traps Extracted . | . . . . Installed . | . . . . Triggered . | . . . . Most Traps Carried 3 | . . 3 1 Machines | -11 -10 -10 -10 ---------- Run | Yrd Mat Min Sub Machines Disabled 2 | . 1 . 1 Max in Single Turn 1 | . 1 . 1 Machines Repaired . | . . . . Machines Dismantled . | . . . . Machines Sabotaged . | . . . . Overloaded Fab Kills . | . . . . Hacking | -11 -10 -10 -10 --------- Run | Yrd Mat Min Sub Machines Accessed 11 | . 10 . 1 Terminals 7 | . 7 . . Fabricators . | . . . . Repair Stations 1 | . 1 . . Recycling Units 2 | . 2 . . Scanalyzers . | . . . . Garrison Access . | . . . . Total Hacks 39 | . 30 . 9 Successful 26 | . 17 . 9 Failed 13 | . 13 . . Catastrophic 1 | . 1 . . Database Lockouts . | . . . . Manual 22 | . 22 . . Terminals 20 | . 20 . . Fabricators . | . . . . Repair Stations 3 | . 3 . . Recycling Units 7 | . 7 . . Scanalyzers . | . . . . Garrison Access . | . . . . Terminal Hacks 13 | . 4 . 9 Record 8 | . . . 8 Robot Schematic 1 | . 1 . . Prototype ID Bank 1 | . 1 . . Locate Traps 2 | . 2 . . Proto ID Catalog 1 | . . . 1 Fabricator Hacks . | . . . . Repair Station Hacks 2 | . 2 . . Scan Component 1 | . 1 . . Repair 1 | . 1 . . Recycling Unit Hacks 2 | . 2 . . Retrieve Components 2 | . 2 . . Scanalyzer . | . . . . Garrison Access Hacks . | . . . . Unauthorized Hacks 9 | . 9 . . Terminals 6 | . 6 . . Operators 1 | . 1 . . Skim 5 | . 5 . . Fabricators . | . . . . Repair Stations . | . . . . Recycling Units 3 | . 3 . . Reject 1 | . 1 . . Tunnel 2 | . 2 . . Scanalyzers . | . . . . Garrison Access . | . . . . Data Cores Recovered . | . . . . Used . | . . . . Hacking Detections 8 | . 8 . . Full Trace Events 1 | . 1 . . Feedback Events . | . . . . Feedback Blocked . | . . . . Robot Schematics Acquired 1 | . 1 . . Robots Built . | . . . . Authchips . | . . . . Time . | . . . . Total Robot Build Rating . | . . . . Part Schematics Acquired . | . . . . Parts Built . | . . . . Authchips . | . . . . Time . | . . . . Total Part Build Rating . | . . . . Parts Repaired 1 | . 1 . . Time 13 | . 13 . . Parts Recycled . | . . . . Recycled Matter . | . . . . Retrieved Matter . | . . . . Retrieved Components 12 | . 12 . . Parts Scanalyzed . | . . . . Part Schematics Acquired . | . . . . Parts Damaged . | . . . . Bothacking | -11 -10 -10 -10 ------------ Run | Yrd Mat Min Sub Used RIF Installer . | . . . . Robots Hacked . | . . . . Non-combat . | . . . . Combat . | . . . . Robot Hacks Applied . | . . . . Relay Couplers Released . | . . . . Fabnet Peak Effective % . | . . . . Robots Rewired . | . . . . Allies Hacked . | . . . . Hacks Repelled . | . . . . Allies | -11 -10 -10 -10 -------- Run | Yrd Mat Min Sub Total Allies 3 | . . 3 . Largest Group 3 | . . 3 3 Highest-Rated Group 40 | . . 40 40 Highest-Rated Ally 16 | . . 16 16 Total Orders . | . . . . Ally Attacks 28 | . . . 28 Total Damage 209 | . . . 209 Kills 1 | . . . 1 Allies Corrupted . | . . . . Allies Melted . | . . . . Intel | -11 -10 -10 -10 ------- Run | Yrd Mat Min Sub Active Infowar (turns) 1832 | 76 549 . 1207 Seismic 1832 | 76 549 . 1207 Robot Analysis Total . | . . . . Derelict Logs Recovered 3 | . . 1 2 Drone Launches . | . . . . Drone Recoveries . | . . . . Exploration | -11 -10 -10 -10 ------------- Run | Yrd Mat Min Sub Turns Passed 4227 | 304 1519 854 1550 Spaces Moved 3128 | 222 1263 671 972 Core 2 | 2 . . . Treads . | . . . . Legs . | . . . . Wheels 3126 | 220 1263 671 972 Hover . | . . . . Flight . | . . . . Fastest Speed 50 | 50 80 110 105 Average Speed 110 | 86 100 110 128 Slowest Speed 170 | 100 110 110 170 Overloaded Moves . | . . . . Propulsion Burnouts . | . . . . Robots Hopped . | . . . . Potential Cave-ins . | . . . . Cave-ins Triggered . | . . . . Exploration Rate (%) 63 | 6 98 97 53 Regions Visited 3 Branch Regions 2 Pre-discovered Areas 2 | . 2 . . Known Exits Taken 1 | . . 1 . Unknown Exits Taken 2 | 1 1 . . Scrap Searched 12 | . . 2 10 Spaces Dug 11 | . 1 10 . Terrain Destroyed 34 | . 9 25 . Melee 1 | . 1 . . Projectile . | . . . . AOE 33 | . 8 25 . Terrain Rammed . | . . . . Walls Destroyed . | . . . . Machines Disabled . | . . . . Actions | -11 -10 -10 -10 --------- Run | Yrd Mat Min Sub Total 3654 | 281 1432 735 1206 Wait 198 | 2 71 18 107 Move 3125 | 221 1262 670 972 Hop . | . . . . Pick Up 66 | 13 25 7 21 Fast Attach 10 | 7 2 . 1 Attach 14 | . 3 5 6 Detach . | . . . . Swap 26 | 3 9 4 10 Drop 44 | 6 14 4 20 Fire 166 | 29 41 27 69 Melee 5 | . 5 . . Ram . | . . . . Kick . | . . . . Crush . | . . . . Escape Stasis . | . . . . Rewire . | . . . . Trap . | . . . . Miscellaneous . | . . . . Route ------- -11/Scrapyard -10/Materials (discovered 5 exits: *Mat x3 / [*Min] / Sub) -10/Mines (discovered 3 exits: *Mat x2 / *Sub) -10/Subcaves (discovered 3 exits: [*Mat x2] / [*Scr]) History --------- Turn | Location | Event 17 | -11/Scrapyard | Discovered new exit (range 15) 305 | -11/Scrapyard | Entered Materials 306 | -10/Materials | Met a group of wandering Federalists 323 | -10/Materials | Build established: Mutant 585 | -10/Materials | Discovered new exit (range 13) 724 | -10/Materials | Learned 4 Recycling zone layouts 772 | -10/Materials | Loaded intel: 1 repair station location 833 | -10/Materials | Discovered new exit (range 15) 838 | -10/Materials | Learned 2 Mines zone layouts 855 | -10/Materials | Learned Storage stockpile data 864 | -10/Materials | Identified exit to Materials 865 | -10/Materials | Learned 4 Subcaves zone layouts 872 | -10/Materials | Identified exit to Subcaves 873 | -10/Materials | Repaired Hcp. Storage Unit 887 | -10/Materials | Learned Storage garrison access intel 912 | -10/Materials | Learned 2 Mines zone layouts 1824 | -10/Materials | Entered Mines 1953 | -10/Mines | Core integrity fell below 50% 1956 | -10/Mines | Lost 3 parts (1n1u1w) 2111 | -10/Mines | Found a hidden stash of uninstalled traps 2251 | -10/Mines | Found a Scrap Suit stashed away for nefarious purposes 2254 | -10/Mines | Found Scrap Suit 2347 | -10/Mines | Learned location of 1 exit from Materials 2522 | -10/Mines | Assisted by bots powering up and referring to "LRC-V3" 2678 | -10/Mines | Entered Subcaves 2678 | -10/Subcaves | Accompanied by 3 allies 2679 | -10/Subcaves | Approached by a straggling Scientist 2698 | -10/Subcaves | A swath of the cavern ceiling suddenly collapsed 2710 | -10/Subcaves | A swath of the cavern ceiling suddenly collapsed 2735 | -10/Subcaves | Discovered new exit (range 5) 2775 | -10/Subcaves | Scientist uncovered a shortcut to Scraptown 2809 | -10/Subcaves | Shifting Twisted Machinery released Spk. Treads 2879 | -10/Subcaves | Learned Materials trap positions 3061 | -10/Subcaves | Shifting Twisted Machinery released Scrap Shield 3265 | -10/Subcaves | Disturbed a concealed Subdweller 3449 | -10/Subcaves | Lost 3 allies 3515 | -10/Subcaves | Lost 3 parts (1p1n1w) 3654 | -10/Subcaves | Learned location of 1 exit from Materials 3776 | -10/Subcaves | Build established: Scavenger-Mutant 4042 | -10/Subcaves | Discovered new exit (range 8) 4102 | -10/Subcaves | Visited 4L-MR0's lab 4103 | -10/Subcaves | Core integrity fell below 20% 4148 | -10/Subcaves | Found Rainbow Chip 4228 | -10/Subcaves | Disturbed a concealed Subdweller 4228 | -10/Subcaves | Destroyed by AZ-G2W(R) with Subdweller Machine Gun Last Messages --------------- on a vague rumor about ending the world in a hellish blaze at the flip of a switch. Also why would anyone want that. >>Record "Uberlauncher" I hear [REDACTED] exploded during the installation process. I did warn them to fully install it before trying to fire, and something tells me that's where things went wrong. Still I'm glad they didn't listen, that way I'm not culpable for whatever they would've done with it. If we're lucky even some of the others got blasted, too. 04143_ Testing Chamber breached. 04148_ Dropped Sub. Monowheel. 04148_ Acquired Rainbow Chip. 04220_ Searching scrap... 04220_ Found Hvy. Riot Gun. 04220_ Found 60 Matter. 04223_ Dropped Corrupted Sub. Beam Cannon. 04224_ Acquired Hvy. Riot Gun. 04225_ Searching scrap... 04225_ Found Mak. Axe. 04225_ Found 52 Matter. 04228_ AZ-G2W(R) angrily emerges from the Twisted Machinery. Map ----- +----------------------------------------------------+ | ?????????????????????????????????????????????????? | | ?????????????????????????????????????????????????? | | ??????????????????????##############?????????????? | | ??????????????????????##" """"""#" #?????????????? | | ??????????????????????##" X" = #?????????????? | | ?????????????????????##### ###?????????????? | | ?????????????????????#"|!+ ####????????????? | | ?????????????????????#"%###########"#????????????? | | ?????????????????????#"!###########%#????????????? | | ?????????????????????#=&%%"##### "= #????????????? | | ?????????????????????#"&=| # |##????????????? | | ?????????????????????##"[ ##" #?????????????? | | ??????????????????????##" "## "####?????????????? | | ?????????????????????#######< ####?????????????? | | ?????????????????##### ### " ####???????????? | | ????????????????## # ##########??? | | ????????????????# < ###### # ## ??? | | ????????????????# ##??# ??? | | ????????????????# ##?# ??? | | ????????????????# #?# ### ??? | | ????????????????# #### ### #### #?#### ??? | | ????????????????# ###?# ### ### #????## ??? | | ????????????????# ####### # ######## ??? | | ????????????????##??# ## ### ??? | | ????????????????????# #&]# ??? | | ??????????????????### ##<@## #### # ## | | ??????????????????# ?#<%%<# #??## ###### ##? | | ??????????????????# #